fUST/lending_fUST_20260414
["ID","MTS","AMOUNT","RATE_DAILY","PERIOD"]
[420505665,1776179450414,-500.0,0.0001178,2]
[420505666,1776179450426,-500.0,0.0001178,2]
[420505667,1776179450440,-500.0,0.0001178,2]
[420505668,1776179450450,-1374.1553,0.0001178,2]
[420505669,1776179450460,-500.0,0.0001178,2]
[420505670,1776179450470,-563.4,0.0001178,2]
[420505671,1776179450483,-222.33,0.0001178,2]
[420505672,1776179450493,-500.0,0.0001178,2]
[420505673,1776179450503,-511.18,0.0001178,2]
[420505674,1776179450516,-500.0,0.0001178,2]
[420505675,1776179450533,-569.16,0.0001178,2]
[420505676,1776179450543,-500.0,0.0001178,2]
[420505677,1776179450561,-500.0,0.0001178,2]
[420505678,1776179450572,-194.88538292,0.0001178,2]
[420505679,1776179450583,-500.0,0.0001178,2]
[420505680,1776179450593,-500.0,0.0001178,2]
[420505681,1776179450610,-554.94,0.0001178,2]
[420505682,1776179450621,-500.0,0.0001178,2]
[420505683,1776179450631,-500.0,0.0001178,2]
[420505684,1776179450649,-500.0,0.0001178,2]
[420505685,1776179450660,-500.0,0.0001178,2]
[420505686,1776179450670,-764.99,0.0001178,2]
[420505687,1776179450682,-500.0,0.0001178,2]
[420505688,1776179450698,-500.0,0.0001178,2]
[420505689,1776179450719,-9753.8,0.0001178,2]
[420505690,1776179450728,-500.0,0.0001178,2]
[420505691,1776179450745,-10085.94,0.0001178,2]
[420505692,1776179450765,-500.0,0.0001178,2]
[420505693,1776179450784,-500.0,0.0001178,2]
[420505694,1776179450799,-500.0,0.0001178,2]
[420505695,1776179450822,-500.0,0.0001178,2]
[420505696,1776179450832,-500.0,0.0001178,2]
[420505697,1776179450843,-500.0,0.0001178,2]
[420505698,1776179450873,-500.0,0.0001178,2]
[420505699,1776179450884,-500.0,0.0001178,2]
[420505700,1776179450901,-615.19,0.0001178,2]
[420505701,1776179450919,-500.0,0.0001178,2]
[420505702,1776179450930,-500.0,0.0001178,2]
[420505703,1776179450960,-580.29,0.0001178,2]
[420505704,1776179450970,-500.0,0.0001178,2]
[420505705,1776179450992,-7016.98,0.0001178,2]
[420505706,1776179451021,-500.0,0.0001178,2]
[420505707,1776179451031,-500.0,0.0001178,2]
[420505708,1776179451055,-500.0,0.0001178,2]
[420505709,1776179451065,-7599.2,0.0001178,2]
[420505710,1776179451075,-500.0,0.0001178,2]
[420505711,1776179451095,-500.0,0.0001178,2]
[420505712,1776179451105,-500.0,0.0001178,2]
[420505713,1776179451126,-500.0,0.0001178,2]
[420505714,1776179451135,-500.0,0.0001178,2]
[420505715,1776179451145,-8795.6,0.0001178,2]
[420505716,1776179451161,-500.0,0.0001178,2]
[420505717,1776179451178,-500.0,0.0001178,2]
[420505718,1776179451188,-500.0,0.0001178,2]
[420505719,1776179451208,-500.0,0.0001178,2]
[420505720,1776179451219,-586.05,0.0001178,2]
[420505721,1776179451229,-547.63,0.0001178,2]
[420505722,1776179451251,-30590.69,0.0001178,2]
[420505723,1776179451261,-6548.51,0.0001178,2]
[420505724,1776179451271,-500.0,0.0001178,2]
[420505725,1776179451288,-997.86,0.0001178,2]
[420505726,1776179451301,-11530.4,0.0001178,2]
[420505727,1776179451311,-500.0,0.0001178,2]
[420505728,1776179451322,-15520.86,0.0001178,2]
[420505729,1776179451343,-500.0,0.0001178,2]
[420505730,1776179451353,-22200.85,0.0001178,2]
[420505731,1776179451363,-15695.9,0.0001178,2]
[420505732,1776179451380,-500.0,0.0001178,2]
[420505733,1776179451396,-500.0,0.0001178,2]
[420505734,1776179451406,-500.0,0.0001178,2]
[420505735,1776179451418,-500.0,0.0001178,2]
[420505736,1776179451436,-500.0,0.0001178,2]
[420505737,1776179451445,-280.62522357,0.0001178,2]
[420505738,1776179451456,-500.0,0.0001178,2]
[420505739,1776179451468,-10863.91,0.0001178,2]
[420505740,1776179451492,-500.0,0.0001178,2]
[420505741,1776179451504,-9230.13,0.0001178,2]
[420505742,1776179451514,-5089.42,0.0001178,2]
[420505743,1776179451528,-500.0,0.0001178,2]
[420505744,1776179451545,-500.0,0.0001178,2]
[420505745,1776179451554,-500.0,0.0001178,2]
[420505746,1776179451572,-500.0,0.0001178,2]
[420505747,1776179451586,-500.0,0.0001178,2]
[420505748,1776179451600,-726.61,0.0001178,2]
[420505749,1776179451615,-333.6207901,0.00011972,2]
[420505750,1776179451625,-3619.4410805,0.00012038,2]
[420505751,1776179451654,-155.0,0.00012053,2]
[420505752,1776179451665,-155.0,0.00012053,2]
[420505753,1776179451676,-378.52,0.00012054,2]
[420505754,1776179451701,-500.0,0.00012054,2]
[420505755,1776179451724,-581.29,0.00012054,2]
[420505756,1776179451753,-500.0,0.00012054,2]
[420505757,1776179451768,-295.69,0.00012054,2]
[420505758,1776179451778,-500.0,0.00012054,2]
[420505759,1776179451795,-500.0,0.00012054,2]
[420505760,1776179451817,-500.0,0.00012054,2]
[420505761,1776179451828,-505.71909699,0.00012054,2]
[420505762,1776179451839,-828.39,0.00012054,2]
[420505763,1776179451852,-500.0,0.00012054,2]
[420505764,1776179451862,-500.0,0.00012054,2]
[420505765,1776179451875,-198.66,0.00012054,2]
[420505766,1776179451885,-1374.1553,0.00012054,2]
[420505767,1776179451904,-563.4,0.00012054,2]
[420505768,1776179451915,-511.18,0.00012054,2]
[420505769,1776179451925,-906.16641838,0.00012054,2]
[420505770,1776179451944,-500.0,0.00012054,2]
[420505771,1776179451953,-3621.04100784,0.00012054,2]
[420505772,1776179451966,-500.0,0.00012054,2]
[420505773,1776179451995,-500.0,0.00012054,2]
[420505774,1776179452005,-500.0,0.00012054,2]
[420505775,1776179452019,-500.0,0.00012054,2]
[420505776,1776179452041,-500.0,0.00012054,2]
[420505777,1776179452054,-500.0,0.00012054,2]
[420505778,1776179452078,-528.85,0.00012054,2]
[420505779,1776179452119,-764.99,0.00012054,2]
[420505780,1776179452146,-500.0,0.00012054,2]
[420505781,1776179452186,-408.81082994,0.00012054,2]
[420505782,1776179452238,-531.14466755,0.00012054,2]
[420505783,1776179452288,-9753.8,0.00012054,2]
[420505784,1776179452308,-2122.45409155,0.00012054,2]
[420505785,1776179452329,-500.0,0.00012054,2]
[420505786,1776179452361,-10085.94,0.00012054,2]
[420505787,1776179452371,-500.0,0.00012054,2]
[420505788,1776179452381,-500.0,0.00012054,2]
[420505789,1776179452408,-500.0,0.00012054,2]
[420505790,1776179452417,-500.0,0.00012054,2]
[420505791,1776179452437,-611.41,0.00012054,2]
[420505792,1776179452448,-500.0,0.00012054,2]
[420505793,1776179452458,-500.0,0.00012054,2]
[420505794,1776179452470,-500.0,0.00012054,2]
[420505795,1776179452488,-615.19,0.00012054,2]
[420505796,1776179452498,-500.0,0.00012054,2]
[420505797,1776179452511,-500.0,0.00012054,2]
[420505798,1776179452525,-580.29,0.00012054,2]
[420505799,1776179452535,-500.0,0.00012054,2]
[420505800,1776179452547,-7016.98,0.00012054,2]
[420505801,1776179452573,-500.0,0.00012054,2]
[420505802,1776179452584,-500.0,0.00012054,2]
[420505803,1776179452599,-603.38688674,0.00012054,2]
[420505804,1776179452611,-7599.2,0.00012054,2]
[420505805,1776179452621,-500.0,0.00012054,2]
[420505806,1776179452639,-500.0,0.00012054,2]
[420505807,1776179452661,-500.0,0.00012054,2]
[420505808,1776179452671,-500.0,0.00012054,2]
[420505809,1776179452707,-500.0,0.00012054,2]
[420505810,1776179452717,-8795.6,0.00012054,2]
[420505811,1776179452736,-500.0,0.00012054,2]
[420505812,1776179452762,-500.0,0.00012054,2]
[420505813,1776179452774,-500.0,0.00012054,2]
[420505814,1776179452798,-500.0,0.00012054,2]
[420505815,1776179452808,-586.05,0.00012054,2]
[420505816,1776179452826,-547.63,0.00012054,2]
[420505817,1776179452845,-6548.51,0.00012054,2]
[420505818,1776179452856,-30590.69,0.00012054,2]
[420505819,1776179452873,-500.0,0.00012054,2]
[420505820,1776179452886,-997.86,0.00012054,2]
[420505821,1776179452909,-11530.4,0.00012054,2]
[420505822,1776179452919,-500.0,0.00012054,2]
[420505823,1776179452930,-15520.86,0.00012054,2]
[420505824,1776179452953,-500.0,0.00012054,2]
[420505825,1776179452965,-22200.85,0.00012054,2]
[420505826,1776179452975,-15695.9,0.00012054,2]
[420505827,1776179452996,-500.0,0.00012054,2]
[420505828,1776179453010,-500.0,0.00012054,2]
[420505829,1776179453158,-194.64324507,0.00012054,2]
[420505830,1776179453176,-500.0,0.00012054,2]
[420505831,1776179453203,-500.0,0.00012054,2]
[420505832,1776179453226,-647.78250982,0.00012054,2]
[420505833,1776179453264,-10863.91,0.00012054,2]
[420505834,1776179453274,-500.0,0.00012054,2]
[420505835,1776179453293,-9230.13,0.00012054,2]
[420505836,1776179453321,-5089.42,0.00012054,2]
[420505837,1776179453331,-500.0,0.00012054,2]
[420505838,1776179453341,-500.0,0.00012054,2]
[420505839,1776179453360,-500.0,0.00012054,2]
[420505840,1776179453370,-500.0,0.00012054,2]
[420505841,1776179453379,-726.61,0.00012054,2]
[420505842,1776179453389,-1000.0,0.00012081,2]
[420505843,1776179453403,-174.9945858,0.00012178,2]
[420505844,1776179453415,-2312.83697232,0.00012199,2]
[420505845,1776179453426,-638.80499034,0.00012228,2]
[420505846,1776179453439,-5000.0,0.000123,2]
[420505847,1776179453457,-344.8,0.00012328,2]
[420505848,1776179453469,-500.0,0.00012328,2]
[420505849,1776179453480,-500.0,0.00012328,2]
[420505850,1776179453506,-500.0,0.00012328,2]
[420505851,1776179453520,-828.39,0.00012328,2]
[420505852,1776179453533,-534.43,0.00012328,2]
[420505853,1776179453546,-500.0,0.00012328,2]
[420505854,1776179453556,-1374.1553,0.00012328,2]
[420505855,1776179453571,-563.4,0.00012328,2]
[420505856,1776179453594,-511.18,0.00012328,2]
[420505857,1776179453604,-500.0,0.00012328,2]
[420505858,1776179453617,-500.0,0.00012328,2]
[420505859,1776179453635,-500.0,0.00012328,2]
[420505860,1776179453648,-500.0,0.00012328,2]
[420505861,1776179453660,-500.0,0.00012328,2]
[420505862,1776179453684,-764.99,0.00012328,2]
[420505863,1776179453695,-500.0,0.00012328,2]
[420505864,1776179453705,-9753.8,0.00012328,2]
[420505865,1776179453716,-500.0,0.00012328,2]
[420505866,1776179453727,-10085.94,0.00012328,2]
[420505867,1776179453740,-500.0,0.00012328,2]
[420505868,1776179453751,-500.0,0.00012328,2]
[420505869,1776179453771,-500.0,0.00012328,2]
[420505870,1776179453781,-564.21,0.00012328,2]
[420505871,1776179453793,-500.0,0.00012328,2]
[420505872,1776179453807,-509.85,0.00012328,2]
[420505873,1776179453817,-615.19,0.00012328,2]
[420505874,1776179453828,-500.0,0.00012328,2]
[420505875,1776179453848,-187.35056231,0.00012328,2]
[420505876,1776179453870,-312.64943769,0.00012328,2]
[420505877,1776179453882,-580.29,0.00012328,2]
[420505878,1776179453896,-1263.85056231,0.00012328,2]
[420505879,1776179455577,-5000.0,9.503e-05,2]
[420505880,1776179455592,-544.69101439,9.599e-05,2]
[420505881,1776179455602,-500.0,9.599e-05,2]
[420505882,1776179455612,-500.0,9.599e-05,2]
[420505883,1776179455634,-500.0,9.599e-05,2]
[420505884,1776179455644,-500.0,9.599e-05,2]
[420505885,1776179455654,-500.0,9.599e-05,2]
[420505886,1776179455668,-500.0,9.599e-05,2]
[420505887,1776179455682,-500.0,9.599e-05,2]
[420505888,1776179455691,-500.0,9.599e-05,2]
[420505889,1776179455701,-455.30898561,9.599e-05,2]
[420505890,1776179455889,-44.69101439,9.599e-05,2]
[420505891,1776179455907,-500.0,9.599e-05,2]
[420505892,1776179455918,-500.0,9.599e-05,2]
[420505893,1776179455931,-500.0,9.599e-05,2]
[420505894,1776179455952,-306.34054261,9.599e-05,2]
[420505895,1776179455969,-193.65945739,9.599e-05,2]
[420505896,1776179455979,-450.34054261,9.599e-05,2]
[420505897,1776179456024,-49.65945739,9.599e-05,2]
[420505898,1776179456040,-530.52748877,0.00010959,2]
[420505899,1776179456056,-530.52748877,0.00010959,2]
[420505900,1776179456067,-530.52748877,0.00010959,2]
[420505901,1776179456080,-530.52748877,0.00010959,2]
[420505902,1776179456090,-530.52748877,0.00010959,2]
[420505903,1776179456103,-530.52748877,0.00010959,2]
[420505904,1776179456113,-530.52748877,0.00010959,2]
[420505905,1776179456128,-530.52748877,0.00010959,2]
[420505906,1776179456139,-530.52748877,0.00010959,2]
[420505907,1776179456159,-530.52748877,0.00010959,2]
[420505908,1776179456172,-5753.12943769,0.00012328,2]
[420505909,1776179456182,-500.0,0.00012328,2]
[420505910,1776179456197,-500.0,0.00012328,2]
[420505911,1776179456209,-7599.2,0.00012328,2]
[420505912,1776179456223,-500.0,0.00012328,2]
[420505913,1776179456233,-500.0,0.00012328,2]
[420505914,1776179456246,-500.0,0.00012328,2]
[420505915,1776179456260,-635.2995002,0.00012328,2]
[420505916,1776179456270,-500.0,0.00012328,2]
[420505917,1776179456282,-8795.6,0.00012328,2]
[420505918,1776179456292,-500.0,0.00012328,2]
[420505919,1776179456309,-500.0,0.00012328,2]
[420505920,1776179456319,-500.0,0.00012328,2]
[420505921,1776179456329,-586.05,0.00012328,2]
[420505922,1776179456353,-547.63,0.00012328,2]
[420505923,1776179456363,-30590.69,0.00012328,2]
[420505924,1776179456373,-4416.96850891,0.00012328,2]
[420505925,1776179456395,-2131.54149109,0.00012328,2]
[420505926,1776179456406,-500.0,0.00012328,2]
[420505927,1776179456420,-997.86,0.00012328,2]
[420505928,1776179456440,-6470.10425661,0.00012328,2]
[420505929,1776179456462,-2966.37331664,0.00012328,2]
[420505930,1776179456495,-756.85469116,0.00012328,2]
[420505931,1776179456506,-1337.06773559,0.00012328,2]
[420505932,1776179456518,-500.0,0.00012328,2]
[420505933,1776179456537,-8171.68681906,0.00012328,2]
[420505934,1776179456549,-7349.17318094,0.00012328,2]
[420505935,1776179456561,-482.75888708,0.00012328,2]
[420505936,1776179456584,-17.24111292,0.00012328,2]
[420505937,1776179456594,-3867.66156738,0.00012328,2]
[420505939,1776179746888,2412.24173026,0.00022559,120]
[420505940,1776179927634,-2574.47284425,7.884e-05,2]
[420505941,1776179927669,-301.71972775,7.924e-05,2]
[420505942,1776179927712,-5000.0,7.964e-05,2]
[420505943,1776179927753,-870.807428,8.044e-05,2]
[420505944,1776180018232,-5000.0,7.884e-05,2]
[420505945,1776180018258,-531.0,7.884e-05,2]
[420505946,1776180018295,-4469.0,7.964e-05,2]
[420505947,1776180022165,234.0,0.0002186,120]
[420505948,1776180023675,234.0,0.00022953,120]
[420505949,1776180025228,234.0,0.000241,120]
[420505950,1776180027133,234.0,0.00025305,120]
[420505951,1776180028601,234.0,0.00026571,120]
[420505952,1776180033465,163.0,0.00020965,120]
[420505953,1776180035016,163.0,0.00022013,120]
[420505954,1776180036467,163.0,0.00023114,120]
[420505955,1776180038051,163.0,0.00024269,120]
[420505956,1776180039574,163.0,0.00025483,120]
[420505957,1776180098928,-739.70036647,7.805e-05,10]
[420505958,1776180098968,-5000.0,7.884e-05,10]
[420505959,1776180108714,-260.29963353,7.964e-05,2]
[420505960,1776180186400,-5000.0,7.964e-05,2]
[420505961,1776180186427,-304.68792419,7.982e-05,2]
[420505962,1776180186452,-4695.31207581,8e-05,10]
[420505963,1776180264844,-5000.0,7.964e-05,2]
[420505964,1776180280142,-5000.0,7.964e-05,2]
[420505965,1776180309268,187.0,0.00023559,120]
[420505966,1776180310719,187.0,0.00024737,120]
[420505967,1776180312495,187.0,0.00025974,120]
[420505968,1776180313876,187.0,0.00027273,120]
[420505969,1776180336787,-5000.0,7.884e-05,2]
[420505970,1776180336816,-5000.0,7.964e-05,2]
[420505971,1776180383222,-5000.0,7.884e-05,10]
[420505972,1776180383246,-5000.0,7.964e-05,10]
[420505973,1776180446338,-5000.0,7.884e-05,2]
[420505974,1776180446368,-5000.0,7.964e-05,2]
[420505983,1776180632542,-253.08869634,7.884e-05,2]
[420505984,1776180632555,-566.01503087,7.884e-05,2]
[420505985,1776180632588,-1221.0,7.884e-05,2]
[420505986,1776180632607,-1353.47284425,7.884e-05,2]
[420505987,1776180632670,-1606.42342854,7.884e-05,2]
[420505988,1776180632680,-298.59416571,7.924e-05,2]
[420505990,1776180632697,-5000.0,7.964e-05,2]
[420505991,1776180632718,-1541.43430226,8.044e-05,2]
[420505992,1776180632728,-1589.08982006,8.108e-05,2]
[420505993,1776180632739,-2412.24173026,8.108e-05,2]
[420505994,1776180632756,-2412.24173026,8.125e-05,2]
[420505995,1776180632766,-2412.24173026,8.207e-05,2]
[420505996,1776180632776,-645.0,8.207e-05,2]
[420505997,1776180632787,-1407.0,8.207e-05,2]
[420505998,1776180632803,-881.031,8.207e-05,2]
[420505999,1776180632821,-186.0,8.207e-05,2]
[420506000,1776180632830,-441.0,8.207e-05,2]
[420506001,1776180632841,-3171.21397011,8.208e-05,2]
[420506002,1776180632855,-3447.34071689,8.308e-05,2]
[420506003,1776180632871,-3700.6903807,8.662e-05,2]
[420506004,1776180632881,-160.0,9.633e-05,2]
[420506005,1776180632892,-500.0,9.882e-05,2]
[420506006,1776180632910,-500.0,9.882e-05,2]
[420506007,1776180632920,-500.0,9.882e-05,2]
[420506008,1776180632930,-500.0,9.882e-05,2]
[420506009,1776180632953,-326.26416366,9.882e-05,2]
[420506010,1776180632962,-463.1109832,9.882e-05,2]
[420506016,1776180639174,-36.8890168,9.882e-05,2]
[420506017,1776180639185,-500.0,9.882e-05,2]
[420506018,1776180639203,-500.0,9.882e-05,2]
[420506019,1776180639217,-391.3509832,9.882e-05,2]
[420506020,1776180639229,-108.6490168,9.882e-05,2]
[420506021,1776180639253,-464.62939482,9.882e-05,2]
[420506022,1776180639263,-500.0,9.882e-05,2]
[420506023,1776180639274,-424.26585293,9.882e-05,2]
[420506024,1776180639294,-480.0,9.882e-05,2]
[420506025,1776180639305,-500.0,9.882e-05,2]
[420506026,1776180639315,-536.66436634,9.882e-05,2]
[420506027,1776180639339,-500.0,9.882e-05,2]
[420506028,1776180639350,-3954.04004463,9.883e-05,2]
[420506029,1776180639362,-352.34111554,9.924e-05,2]
[420506030,1776180639381,-573.98761955,0.0001,2]
[420506031,1776180639391,-169.3261927,0.0001,10]
[420506032,1776180639401,-177.48,0.00010109,2]
[420506033,1776180639428,-197.2,0.00010685,2]
[420506034,1776180639439,-197.2,0.00010685,2]
[420506035,1776180639450,-197.22,0.00010685,2]
[420506036,1776180639467,-2150.738,0.00010726,2]
[420506037,1776180639476,-574.92449136,0.00010773,2]
[420506038,1776180639487,-253.45892136,0.00010852,2]
[420506039,1776180639497,-151.0,0.00010852,2]
[420506040,1776180639518,-151.0,0.00010852,2]
[420506041,1776180639531,-151.0,0.00010852,2]
[420506042,1776180639540,-151.0,0.00010852,2]
[420506043,1776180639553,-151.0,0.00010852,2]
[420506044,1776180639565,-151.0,0.00010852,2]
[420506045,1776180639579,-151.0,0.00010852,2]
[420506046,1776180639590,-151.0,0.00010852,2]
[420506047,1776180639604,-151.0,0.00010852,2]
[420506048,1776180639615,-151.0,0.00010852,2]
[420506049,1776180639636,-151.0,0.00010852,2]
[420506050,1776180639647,-151.0,0.00010852,2]
[420506051,1776180639656,-151.0,0.00010852,2]
[420506052,1776180639674,-151.0,0.00010852,2]
[420506053,1776180639690,-151.0,0.00010852,2]
[420506054,1776180639700,-151.0,0.00010852,2]
[420506055,1776180639716,-151.0,0.00010852,2]
[420506056,1776180639727,-151.0,0.00010852,2]
[420506057,1776180639740,-151.0,0.00010852,2]
[420506058,1776180639762,-170.18337666,0.00010852,2]
[420506059,1776180639772,-500.0,0.00010855,2]
[420506060,1776180639786,-500.0,0.00010855,2]
[420506061,1776180639805,-500.0,0.00010855,2]
[420506062,1776180639816,-500.0,0.00010855,2]
[420506063,1776180639826,-500.0,0.00010855,2]
[420506064,1776180639842,-500.0,0.00010855,2]
[420506065,1776180639852,-500.0,0.00010855,2]
[420506066,1776180639862,-512.2190249,0.00010855,2]
[420506067,1776180639873,-500.0,0.00010855,2]
[420506068,1776180639886,-430.16920846,0.00010855,2]
[420506069,1776180639900,-500.0,0.00010855,2]
[420506070,1776180639911,-500.0,0.00010855,2]
[420506071,1776180639921,-500.0,0.00010855,2]
[420506072,1776180639931,-500.0,0.00010855,2]
[420506073,1776180639947,-500.0,0.00010855,2]
[420506074,1776180639958,-500.0,0.00010855,2]
[420506075,1776180639972,-500.0,0.00010855,2]
[420506076,1776180639986,-300.0,0.00010855,2]
[420506077,1776180640006,-500.0,0.00010855,2]
[420506078,1776180640032,-500.0,0.00010855,2]
[420506079,1776180640042,-500.0,0.00010855,2]
[420506080,1776180640065,-619.28018024,0.00010855,2]
[420506081,1776180640075,-500.0,0.00010855,2]
[420506082,1776180640085,-500.0,0.00010855,2]
[420506083,1776180640103,-500.0,0.00010855,2]
[420506084,1776180640116,-500.0,0.00010855,2]
[420506085,1776180640126,-500.0,0.00010855,2]
[420506086,1776180640136,-300.0,0.00010855,2]
[420506087,1776180640155,-500.0,0.00010855,2]
[420506088,1776180640167,-500.0,0.00010855,2]
[420506089,1776180640178,-420824.00235897,0.00010856,2]
[420506090,1776180640199,-2443.83798997,0.00010856,2]
[420506091,1776180640214,-6375.29018436,0.00010856,2]
[420506092,1776180640257,-6761.64592555,0.00010856,2]
[420506093,1776180640284,-2154.50863312,0.00010856,2]
[420506094,1776180640298,-866079.78372863,0.00010856,2]
[420506095,1776180640311,-1112471.79491779,0.00010858,2]
[420506097,1776180640343,-12913.79060295,0.00010858,2]
[420506099,1776180640354,-833.406,0.00010858,2]
[420506107,1776180641784,-0.8106164,0.00010858,2]
[420506186,1776180647278,-5000.0,0.0001075,2]
[420506187,1776180647299,-69068.09141423,0.00010858,2]
[420506188,1776180647321,-33813.81102433,0.00010858,2]
[420506190,1776180700803,-645.0,8.652e-05,2]
[420506191,1776180700840,-645.0,0.00010642,2]
[420506192,1776180700912,-2594.9026803,0.00010642,2]
[420506194,1776180938643,-166.73591,4.589e-05,2]
[420506195,1776180938686,-166.73591,6.884e-05,2]
[420506196,1776180938714,-55.14788658,8.48e-05,2]
[420506197,1776180938777,-414.48375,8.48e-05,2]
[420506260,1776181726443,1742.49,0.00027397,120]
[420506376,1776181838326,-5000.0,7.67e-05,10]
[420506378,1776181838339,-5000.0,7.747e-05,10]
[420506380,1776181838351,-330.18323455,7.865e-05,2]
[420506382,1776181838363,-300.0,7.903e-05,2]
[420506384,1776181838374,-300.0,7.903e-05,2]
[420506386,1776181838386,-300.0,8.022e-05,2]
[420506388,1776181838400,-642.0,8.652e-05,2]
[420506390,1776181838410,-2207.0,8.652e-05,2]
[420506392,1776181838419,-394.0,8.693e-05,2]
[420506394,1776181838433,-167.0183969,8.732e-05,2]
[420506396,1776181838446,-300.0,8.9e-05,2]
[420506397,1776181838456,-4467.3029183,9.123e-05,2]
[420506398,1776181838465,-166.73591,9.179e-05,2]
[420506400,1776181838476,-300.0,9.2e-05,2]
[420506401,1776181838490,-389.61621677,9.865e-05,2]
[420506402,1776181838500,-1004.995736,9.876e-05,2]
[420506403,1776181838510,-1004.995736,0.00010292,2]
[420506404,1776181838520,-160.0,0.00010567,2]
[420506405,1776181838531,-320.83306981,0.000106,2]
[420506406,1776181838542,-87576.35775749,0.00010656,2]
[420506407,1776181838552,-2150.738,0.00010677,2]
[420506408,1776181838564,-185.85,0.00010685,2]
[420506409,1776181838574,-185.85,0.00010685,2]
[420506410,1776181838585,-1004.995736,0.00010708,2]
[420506411,1776181838596,-635.5873577,0.00010855,2]
[420506412,1776181838609,-411.5608769,0.00010855,2]
[420506413,1776181838623,-173.8711502,0.00010907,2]
[420506414,1776181838635,-455.6436383,0.00010907,2]
[420506415,1776181838646,-325.2214703,0.00010907,2]
[420506416,1776181838663,-155.0,0.00010957,2]
[420506417,1776181838675,-1381.9189,0.00010958,2]
[420506418,1776181838688,-500.0,0.00010958,2]
[420506419,1776181838707,-500.0,0.00010958,2]
[420506420,1776181838721,-500.0,0.00010958,2]
[420506421,1776181838735,-500.0,0.00010958,2]
[420506422,1776181838747,-350.10065437,0.00010958,2]
[420506423,1776181838757,-500.0,0.00010958,2]
[420506424,1776181838774,-456.17447392,0.00010958,2]
[420506425,1776181838784,-500.0,0.00010958,2]
[420506426,1776181838793,-500.0,0.00010958,2]
[420506427,1776181838802,-500.0,0.00010958,2]
[420506428,1776181838823,-500.0,0.00010958,2]
[420506429,1776181838834,-500.0,0.00010958,2]
[420506430,1776181838846,-642.19816127,0.00010958,2]
[420506431,1776181838869,-500.0,0.00010958,2]
[420506432,1776181838879,-500.0,0.00010958,2]
[420506433,1776181838892,-232.18696612,0.00010958,2]
[420506434,1776181838909,-500.0,0.00010958,2]
[420506435,1776181838920,-645.566917,0.00010958,2]
[420506436,1776181838936,-676.7,0.00010958,2]
[420506437,1776181838954,-500.0,0.00010958,2]
[420506438,1776181838965,-500.0,0.00010958,2]
[420506439,1776181838981,-500.0,0.00010958,2]
[420506440,1776181838998,-500.0,0.00010958,2]
[420506441,1776181839007,-462.51091082,0.00010958,2]
[420506443,1776181839017,-500.0,0.00010958,2]
[420506445,1776181839043,-500.0,0.00010958,2]
[420506447,1776181839053,-500.0,0.00010958,2]
[420506449,1776181839069,-500.0,0.00010958,2]
[420506451,1776181839095,-500.0,0.00010958,2]
[420506453,1776181839111,-500.0,0.00010958,2]
[420506455,1776181839171,-500.0,0.00010958,2]
[420506457,1776181839201,-500.0,0.00010958,2]
[420506460,1776181839226,-500.0,0.00010958,2]
[420506461,1776181839251,-500.0,0.00010958,2]
[420506464,1776181839284,-500.0,0.00010958,2]
[420506466,1776181839300,-500.0,0.00010958,2]
[420506468,1776181839354,-500.0,0.00010958,2]
[420506470,1776181839391,-5419.26,0.00010958,2]
[420506471,1776181839414,-1425.73,0.00010958,2]